[Event "Argentine Youth-Junior-ch 2025"]
[Site "Mar del Plata"]
[Date "2025.04.16"]
[Round "2.1"]
[White "Parrilla, Juan Jose"]
[Black "Abramor, Franco"]
[Result "1/2-1/2"]
[Annotator "RC"]
[ECO "B13"]
[WhiteElo "1912"]
[BlackElo "2169"]
[PlyCount "58"]
[EventDate "2025.04.14"]
[EventType "swiss"]
[EventCountry "ARG"]
[SourceTitle "playchess.com"]
[Source "ChessBase"]
[SourceQuality "1"]
[TimeControl "3600+30"]

1. e4 {[%emt 0:00:04]} c6 {[%emt 0:00:05]} 2. d4 {[%emt 0:00:19]} d5 {[%emt 0:00:04]} 3. exd5 {[%emt 0:00:12]} cxd5 {[%emt 0:00:08]} 4. Bd3 {[%emt 0:00:16]} Nc6 {[%emt 0:00:38]} 5. c3 {[%emt 0:00:09]} Nf6 {[%emt 0:00:48]} 6. h3 {[%emt 0:00:16]} e5 {[%emt 0:02:37]} 7. dxe5 {[%emt 0:01:05]} Nxe5 {[%emt 0:00:03]} 8. Nf3 {[%emt 0:00:16]} Nxd3+ {[%emt 0:01:22]} 9. Qxd3 {[%emt 0:00:14]} Bd6 {[%emt 0:06:44]} 10. O-O {[%emt 0:00:39]} O-O {[%emt 0:00:06]} 11. Bg5 {[%emt 0:00:10]} h6 {[%emt 0:05:22]} 12. Bh4 {[%emt 0:01:32]} g5 {[%emt 0:03:50]} 13. Bg3 {[%emt 0:00:06]} Bxg3 {[%emt 0:00:06]} 14. fxg3 {[%emt 0:00:08]} Ne4 {[%emt 0:00:17]} 15. Nd4 {[%emt 0:03:29]} f5 {[%emt 0:05:43]} 16. Nd2 {[%emt 0:06:20]} Bd7 {[%emt 0:04:02]} 17. Nxe4 {[%emt 0:07:53]} dxe4 {[%emt 0:00:54]} 18. Qc4+ {[%emt 0:00:25]} Kg7 {[%emt 0:02:04]} 19. Qd5 {[%emt 0:02:01]} Qe7 {[%emt 0:04:56]} 20. Rae1 {[%emt 0:08:21]} Kg6 {[%emt 0:12:52]} 21. g4 {[%emt 0:10:27]} fxg4 {[%emt 0:01:58]} 22. hxg4 {[%emt 0:03:18]} Rxf1+ {[%emt 0:00:51]} 23. Kxf1 {[%emt 0:00:45]} Rf8+ {[%emt 0:06:13]} 24. Kg1 {[%emt 0:00:22]} Bxg4 {[%emt 0:02:31]} 25. Rxe4 {[%emt 0:02:47]} Qd7 {[%emt 0:00:40]} 26. Qc5 {[%emt 0:00:52]} Re8 {[%emt 0:03:30]} 27. Rxe8 {[%emt 0:01:44]} Qxe8 {[%emt 0:00:51]} 28. Qd6+ {[%emt 0:00:07]} Kh5 {[%emt 0:00:50]} 29. Qh2+ {[%emt 0:00:07]} Kg6 {[%emt 0:04:55]} 1/2-1/2

[Event "Argentine Youth-Junior-ch 2025"]
[Site "Mar del Plata"]
[Date "2025.04.16"]
[Round "2.2"]
[White "Medina, Augusto Benjamin"]
[Black "Scarsi, Anna Laura"]
[Result "0-1"]
[Annotator "RC"]
[ECO "E01"]
[WhiteElo "1815"]
[BlackElo "2144"]
[PlyCount "42"]
[EventDate "2025.04.14"]
[EventType "swiss"]
[EventCountry "ARG"]
[SourceTitle "playchess.com"]
[Source "ChessBase"]
[SourceQuality "1"]
[TimeControl "3600+30"]

1. d4 {[%emt 0:00:07]} d5 {[%emt 0:04:44]} 2. c4 {[%emt 0:01:33]} e6 {[%emt 0:00:05]} 3. Nf3 {[%emt 0:00:03]} Nf6 {[%emt 0:00:03]} 4. g3 {[%emt 0:00:01]} Nc6 {[%emt 0:02:33]} 5. Bg2 {[%emt 0:00:28]} Bd6 {[%emt 0:00:08]} 6. O-O {[%emt 0:00:38]} O-O {[%emt 0:00:13]} 7. Nbd2 {[%emt 0:16:03]} a5 {[%emt 0:01:54]} 8. Qc2 {[%emt 0:16:31]} Re8 {[%emt 0:15:34]} 9. c5 {[%emt 0:01:48]} Bf8 {[%emt 0:00:47]} 10. e4 {[%emt 0:06:46]} dxe4 {[%emt 0:03:12]} 11. Nxe4 {[%emt 0:00:08]} Nd5 {[%emt 0:08:39]} 12. Rd1 {[%emt 0:03:56]} f6 {[%emt 0:05:41]} 13. h4 {[%emt 0:03:39]} b6 {[%emt 0:04:47]} 14. cxb6 {[%emt 0:01:00]} Ndb4 {[%emt 0:00:49]} 15. bxc7 {[%emt 0:00:01]} Nxc2 {[%emt 0:11:08]} 16. cxd8=Q {[%emt 0:00:15]} Rxd8 {[%emt 0:00:05]} 17. Rb1 {[%emt 0:00:42]} e5 {[%emt 0:00:06]} 18. Rd2 {[%emt 0:00:45]} Bf5 {[%emt 0:00:54]} 19. Nfg5 {[%emt 0:06:51]} N2xd4 {[%emt 0:01:37]} 20. Nf3 {[%emt 0:04:30]} Bxe4 {[%emt 0:00:21]} 21. Nxd4 {[%emt 0:00:02]} Bxg2 {[%emt 0:01:03]} 0-1

[Event "Argentine Youth-Junior-ch 2025"]
[Site "Mar del Plata"]
[Date "2025.04.16"]
[Round "2.3"]
[White "Zambianchi, Santino"]
[Black "Villordo, Matias"]
[Result "1/2-1/2"]
[Annotator "ChessBase"]
[ECO "D10"]
[WhiteElo "1811"]
[BlackElo "2055"]
[PlyCount "99"]
[EventDate "2025.04.14"]
[EventType "swiss"]
[EventCountry "ARG"]
[SourceTitle "playchess.com"]
[Source "ChessBase"]
[SourceQuality "1"]
[TimeControl "3600+30"]

1. d4 {[%emt 1:01:00]} Nf6 {[%emt 1:01:00]} 2. c4 {[%emt 0:00:30]} c6 {[%emt 0:00:30]} 3. Nc3 {[%emt 0:00:30]} d5 {[%emt 0:00:30]} 4. cxd5 {[%emt 0:00:30]} cxd5 {[%emt 0:00:30]} 5. Bf4 {[%emt 0:00:30]} Nc6 {[%emt 0:00:30]} 6. e3 {[%emt 0:00:30]} Bf5 {[%emt 0:00:30]} 7. Qb3 {[%emt 0:00:30]} Na5 {[%emt 0:00:30]} 8. Qa4+ {[%emt 0:00:30]} Bd7 {[%emt 0:00:30]} 9. Bb5 {[%emt 0:00:30]} Nc6 {[%emt 0:00:30]} 10. Qd1 {[%emt 0:00:30]} a6 {[%emt 0:00:30]} 11. Bd3 {[%emt 0:00:30]} e6 {[%emt 0:00:30]} 12. Rc1 {[%emt 0:00:30]} Be7 {[%emt 0:00:30]} 13. h3 {[%emt 0:00:00]} O-O {[%emt 0:00:00]} 14. Nf3 {[%emt 0:00:00]} b5 {[%emt 0:00:00]} 15. O-O {[%emt 0:00:00]} Na5 {[%emt 0:00:00]} 16. Qe2 {[%emt 0:00:00]} Rc8 {[%emt 0:00:00]} 17. Ne5 {[%emt 0:00:00]} Nc4 {[%emt 0:00:00]} 18. b3 {[%emt 0:00:00]} Nd6 {[%emt 0:00:00]} 19. Ng4 {[%emt 0:00:00]} Bc6 {[%emt 0:00:00]} 20. Nxf6+ {[%emt 0:00:00]} Bxf6 {[%emt 0:00:00]} 21. Qf3 {[%emt 0:00:00]} b4 {[%emt 0:00:00]} 22. Bxd6 {[%emt 0:00:00]} Qxd6 {[%emt 0:00:00]} 23. Ne2 {[%emt 0:00:00]} Bd7 {[%emt 0:00:00]} 24. Nf4 {[%emt 0:00:00]} Bb5 {[%emt 0:00:00]} 25. Bxb5 {[%emt 0:00:00]} axb5 {[%emt 0:00:00]} 26. Nd3 {[%emt 0:00:00]} Rc3 {[%emt 0:00:00]} 27. Qe2 {[%emt 0:00:56]} Be7 {[%emt 0:01:16]} 28. Rc2 {[%emt 0:01:09]} Qa6 {[%emt 0:02:27]} 29. Rfc1 {[%emt 0:01:44]} Rfc8 {[%emt 0:00:30]} 30. Qd2 {[%emt 0:01:22]} Qa5 {[%emt 0:03:46]} 31. Kf1 {[%emt 0:03:07]} R8c7 {[%emt 0:00:11]} 32. Nf4 {[%emt 0:00:24]} Bd6 {[%emt 0:01:50]} 33. Ne2 {[%emt 0:00:22]} Rxc2 {[%emt 0:00:00]} 34. Rxc2 {[%emt 0:00:06]} g6 {[%emt 0:00:26]} 35. Qc1 {[%emt 0:00:41]} Kg7 {[%emt 0:00:26]} 36. Rxc7 {[%emt 0:00:15]} Bxc7 {[%emt 0:00:33]} 37. Qc2 {[%emt 0:00:35]} Bd6 {[%emt 0:00:30]} 38. Nc1 {[%emt 0:00:19]} h5 {[%emt 0:00:24]} 39. Qc6 {[%emt 0:00:41]} Qc7 {[%emt 0:00:40]} 40. Qxc7 {[%emt 0:00:25]} Bxc7 {[%emt 0:00:04]} 41. Nd3 {[%emt 0:00:11]} Bd6 {[%emt 0:00:07]} 42. Ke2 {[%emt 0:00:41]} f6 {[%emt 0:00:43]} 43. f4 {[%emt 0:01:13]} g5 {[%emt 0:00:45]} 44. fxg5 {[%emt 0:01:08]} fxg5 {[%emt 0:00:31]} 45. Kf3 {[%emt 0:00:25]} Kf6 {[%emt 0:00:27]} 46. g4 {[%emt 0:00:26]} h4 {[%emt 0:00:51]} 47. e4 {[%emt 0:00:32]} Kf7 {[%emt 0:00:26]} 48. exd5 {[%emt 0:00:36]} exd5 {[%emt 0:00:05]} 49. Ke3 {[%emt 0:00:22]} Ke7 {[%emt 0:00:48]} 50. Ne1 {[%emt 0:00:42]} 1/2-1/2

[Event "Argentine Youth-Junior-ch 2025"]
[Site "Mar del Plata"]
[Date "2025.04.16"]
[Round "2.4"]
[White "Gaite, Karen Nerina"]
[Black "Montiel Marin, Micaela Agustina"]
[Result "1-0"]
[Annotator "RC"]
[ECO "A36"]
[WhiteElo "2031"]
[BlackElo "1889"]
[PlyCount "91"]
[EventDate "2025.04.14"]
[EventType "swiss"]
[EventCountry "ARG"]
[SourceTitle "playchess.com"]
[Source "ChessBase"]
[SourceQuality "1"]
[TimeControl "3600+30"]

1. c4 {[%emt 0:02:44]} c5 {[%emt 0:00:05]} 2. Nc3 {[%emt 0:00:11]} g6 {[%emt 0:00:25]} 3. g3 {[%emt 0:00:07]} Bg7 {[%emt 0:00:06]} 4. Bg2 {[%emt 0:00:05]} Nc6 {[%emt 0:00:08]} 5. e3 {[%emt 0:00:35]} e5 {[%emt 0:00:10]} 6. Nge2 {[%emt 0:01:22]} Nge7 {[%emt 0:00:14]} 7. O-O {[%emt 0:00:09]} O-O {[%emt 0:00:04]} 8. b3 {[%emt 0:00:49]} d6 {[%emt 0:00:06]} 9. Bb2 {[%emt 0:00:18]} Bf5 {[%emt 0:00:14]} 10. d3 {[%emt 0:04:20]} Qd7 {[%emt 0:00:58]} 11. a3 {[%emt 0:02:22]} Bh3 {[%emt 0:00:50]} 12. Nd5 {[%emt 0:03:51]} Nxd5 {[%emt 0:09:41]} 13. cxd5 {[%emt 0:04:55]} Ne7 {[%emt 0:00:15]} 14. e4 {[%emt 0:06:31]} Bxg2 {[%emt 0:09:37]} 15. Kxg2 {[%emt 0:00:07]} f5 {[%emt 0:04:45]} 16. f3 {[%emt 0:01:05]} Bh6 {[%emt 0:03:21]} 17. Bc1 {[%emt 0:01:59]} Bg7 {[%emt 0:03:59]} 18. Rb1 {[%emt 0:02:01]} b5 {[%emt 0:00:45]} 19. Be3 {[%emt 0:03:35]} c4 {[%emt 0:05:06]} 20. bxc4 {[%emt 0:05:48]} bxc4 {[%emt 0:00:07]} 21. dxc4 {[%emt 0:01:49]} fxe4 {[%emt 0:00:25]} 22. fxe4 {[%emt 0:00:47]} Rxf1 {[%emt 0:00:28]} 23. Qxf1 {[%emt 0:00:42]} Qa4 {[%emt 0:14:08]} 24. Rb7 {[%emt 0:04:50]} Rf8 {[%emt 0:00:35]} 25. Qc1 {[%emt 0:00:49]} Nc8 {[%emt 0:00:15]} 26. Rb4 {[%emt 0:10:43]} Qd7 {[%emt 0:11:43]} 27. Nc3 {[%emt 0:04:54]} Nb6 {[%emt 0:03:08]} 28. a4 {[%emt 0:04:02]} Rc8 {[%emt 0:00:52]} 29. Qf1 {[%emt 0:00:20]} Na8 {[%emt 0:01:30]} 30. Qb1 {[%emt 0:00:58]} a6 {[%emt 0:00:49]} 31. Rb7 {[%emt 0:00:56]} Qe8 {[%emt 0:00:37]} 32. Qb4 {[%emt 0:00:48]} Bf8 {[%emt 0:00:26]} 33. a5 {[%emt 0:00:52]} Nc7 {[%emt 0:00:32]} 34. Qb6 {[%emt 0:00:47]} Qd8 {[%emt 0:00:22]} 35. Na4 {[%emt 0:00:26]} Qd7 {[%emt 0:00:35]} 36. Qb3 {[%emt 0:00:46]} Re8 {[%emt 0:00:37]} 37. Bb6 {[%emt 0:00:28]} Rc8 {[%emt 0:00:21]} 38. c5 {[%emt 0:00:16]} Kg7 {[%emt 0:00:29]} 39. cxd6 {[%emt 0:00:49]} Bxd6 {[%emt 0:00:19]} 40. Nc5 {[%emt 0:00:10]} Bxc5 {[%emt 0:00:37]} 41. Bxc5 {[%emt 0:00:02]} Qg4 {[%emt 0:00:43]} 42. Qf3 {[%emt 0:00:31]} Qxf3+ 43. Kxf3 {[%emt 0:00:01]} Kf6 {[%emt 0:00:46]} 44. Rb6+ {[%emt 0:00:16]} Kf7 {[%emt 0:00:26]} 45. Rc6 {[%emt 0:00:09]} Ke8 {[%emt 0:00:50]} 46. d6 {[%emt 0:00:12]} 1-0

[Event "Argentine Youth-Junior-ch 2025"]
[Site "Mar del Plata"]
[Date "2025.04.16"]
[Round "2.5"]
[White "Menasse, Lautaro"]
[Black "Bazan Romero, Octavio Aaron"]
[Result "0-1"]
[Annotator "ChessBase"]
[ECO "B23"]
[WhiteElo "1786"]
[BlackElo "2292"]
[PlyCount "92"]
[EventDate "2025.04.14"]
[EventType "swiss"]
[EventCountry "ARG"]
[SourceTitle "playchess.com"]
[Source "ChessBase"]
[SourceQuality "1"]
[TimeControl "3600+30"]

1. e4 {[%emt 0:00:38]} c5 {[%emt 0:01:01]} 2. Nc3 {[%emt 0:00:26]} a6 {[%emt 0:02:01]} 3. f4 {[%emt 0:02:43]} b5 {[%emt 0:00:13]} 4. a3 {[%emt 0:01:11]} Bb7 {[%emt 0:01:05]} 5. d3 {[%emt 0:01:10]} e6 {[%emt 0:02:05]} 6. Be3 {[%emt 0:05:30]} d5 {[%emt 0:01:56]} 7. exd5 {[%emt 0:00:42]} exd5 {[%emt 0:00:10]} 8. d4 {[%emt 0:00:28]} Nc6 {[%emt 0:04:33]} 9. Nf3 {[%emt 0:02:15]} c4 {[%emt 0:01:35]} 10. g3 {[%emt 0:05:19]} Nf6 {[%emt 0:04:45]} 11. Ne5 {[%emt 0:01:43]} Bd6 {[%emt 0:03:07]} 12. Bg2 {[%emt 0:01:31]} Ne7 {[%emt 0:00:56]} 13. O-O {[%emt 0:02:18]} O-O {[%emt 0:04:24]} 14. Ng4 {[%emt 0:04:18]} Nd7 {[%emt 0:11:08]} 15. f5 {[%emt 0:03:22]} f6 {[%emt 0:02:02]} 16. Bf4 {[%emt 0:01:19]} Nb6 {[%emt 0:02:03]} 17. Ne3 {[%emt 0:02:34]} Qd7 {[%emt 0:02:39]} 18. Ne2 {[%emt 0:04:13]} Rfe8 {[%emt 0:01:54]} 19. Bxd6 {[%emt 0:01:36]} Qxd6 {[%emt 0:00:02]} 20. Nf4 {[%emt 0:00:10]} c3 {[%emt 0:05:52]} 21. b3 {[%emt 0:01:39]} g5 {[%emt 0:06:44]} 22. fxg6 {[%emt 0:01:16]} hxg6 {[%emt 0:00:12]} 23. Qd3 {[%emt 0:01:43]} Kf7 {[%emt 0:03:40]} 24. Ng4 {[%emt 0:05:46]} Bc8 {[%emt 0:01:25]} 25. Nxg6 {[%emt 0:07:22]} Nxg6 {[%emt 0:01:55]} 26. Rxf6+ {[%emt 0:00:07]} Qxf6 {[%emt 0:00:05]} 27. Nxf6 {[%emt 0:00:05]} Kxf6 {[%emt 0:00:14]} 28. Rf1+ {[%emt 0:00:59]} Kg7 {[%emt 0:00:18]} 29. Qxc3 {[%emt 0:00:12]} Ra7 {[%emt 0:02:37]} 30. Qc5 {[%emt 0:01:11]} Rb7 {[%emt 0:01:34]} 31. Bxd5 {[%emt 0:00:31]} Nxd5 {[%emt 0:00:19]} 32. Qxd5 {[%emt 0:00:02]} Rbe7 {[%emt 0:00:31]} 33. Qh5 {[%emt 0:03:16]} Re4 {[%emt 0:02:31]} 34. Qg5 {[%emt 0:03:47]} Bh3 {[%emt 0:00:13]} 35. Rd1 {[%emt 0:00:47]} Re2 {[%emt 0:00:41]} 36. Qh5 {[%emt 0:00:51]} Rg2+ {[%emt 0:00:42]} 37. Kh1 {[%emt 0:00:12]} Rd2 {[%emt 0:00:07]} 38. Rb1 {[%emt 0:03:11]} Bg2+ {[%emt 0:00:42]} 39. Kg1 {[%emt 0:00:01]} Ree2 {[%emt 0:00:32]} 40. Qf5 {[%emt 0:03:03]} Be4 {[%emt 0:00:21]} 41. Qd7+ {[%emt 0:00:24]} Kh6 {[%emt 0:00:07]} 42. Qg4 {[%emt 0:01:01]} Rg2+ {[%emt 0:01:02]} 43. Kf1 {[%emt 0:00:08]} Bxc2 {[%emt 0:00:27]} 44. Qh3+ {[%emt 0:00:55]} Kg5 {[%emt 0:00:06]} 45. Rc1 {[%emt 0:00:28]} Bd3+ {[%emt 0:00:08]} 46. Ke1 {[%emt 0:00:03]} Rde2+ {[%emt 0:00:07]} 0-1

[Event "Argentine Youth-Junior-ch 2025"]
[Site "Mar del Plata"]
[Date "2025.04.16"]
[Round "2.6"]
[White "Fernandez, Milagros"]
[Black "Benitez, Agustina"]
[Result "1-0"]
[Annotator "NA RC"]
[ECO "B03"]
[WhiteElo "1671"]
[BlackElo "1804"]
[PlyCount "45"]
[EventDate "2025.04.14"]
[EventType "swiss"]
[EventCountry "ARG"]
[SourceTitle "playchess.com"]
[Source "ChessBase"]
[SourceQuality "1"]
[TimeControl "3600+30"]

1. e4 {[%emt 0:00:36]} Nf6 {[%emt 0:00:05]} 2. e5 {[%emt 0:00:12]} Nd5 {[%emt 0:00:03]} 3. d4 {[%emt 0:00:50]} d6 {[%emt 0:00:05]} 4. c4 {[%emt 0:00:49]} Nb6 {[%emt 0:00:04]} 5. f4 {[%emt 0:09:27]} dxe5 {[%emt 0:00:24]} 6. fxe5 {[%emt 0:00:29]} Nc6 {[%emt 0:00:06]} 7. Be3 {[%emt 0:03:23]} Bf5 {[%emt 0:00:10]} 8. a3 {[%emt 0:05:19]} e6 {[%emt 0:01:09]} 9. Nf3 {[%emt 0:02:20]} Be7 {[%emt 0:00:09]} 10. d5 {[%emt 0:05:58]} exd5 {[%emt 0:02:02]} 11. Bxb6 {[%emt 0:01:53]} axb6 {[%emt 1:01:43]} 12. cxd5 {[%emt 0:04:04]} Nb8 {[%emt 0:00:00]} 13. Nc3 {[%emt 0:01:18]} O-O {[%emt 0:00:00]} 14. Bd3 {[%emt 0:04:20]} Bxd3 {[%emt 0:00:00]} 15. Qxd3 {[%emt 0:00:08]} f6 {[%emt 0:00:00]} 16. Nd4 {[%emt 0:03:12]} Qd7 {[%emt 0:00:00]} 17. Ne6 {[%emt 0:04:33]} Re8 {[%emt 0:00:00]} 18. Qg3 {[%emt 0:01:32]} g6 {[%emt 0:00:00]} 19. O-O {[%emt 0:04:12]} fxe5 {[%emt 0:00:00]} 20. Qxe5 {[%emt 0:02:09]} Bd6 {[%emt 0:00:00]} 21. Qf6 {[%emt 0:01:01]} c6 {[%emt 0:00:00]} 22. Ne4 {[%emt 0:01:05]} Bc5+ {[%emt 0:00:00]} 23. N4xc5 {[%emt 0:00:33]} 1-0

[Event "Argentine Youth-Junior-ch 2025"]
[Site "Mar del Plata"]
[Date "2025.04.16"]
[Round "2.7"]
[White "Borras, Jonathan"]
[Black "Gil Chacon, Fernando Enrique"]
[Result "1-0"]
[Annotator "RC"]
[ECO "B13"]
[WhiteElo "1808"]
[BlackElo "2035"]
[PlyCount "65"]
[EventDate "2025.04.14"]
[EventType "swiss"]
[EventCountry "ARG"]
[SourceTitle "playchess.com"]
[Source "ChessBase"]
[SourceQuality "1"]
[TimeControl "3600+30"]

1. e4 {[%emt 0:10:42]} c6 {[%emt 0:00:10]} 2. d4 {[%emt 0:00:05]} d5 {[%emt 0:00:07]} 3. exd5 {[%emt 0:00:06]} cxd5 {[%emt 0:00:07]} 4. Bd3 {[%emt 0:00:07]} Nc6 {[%emt 0:00:17]} 5. c3 {[%emt 0:00:08]} Nf6 {[%emt 0:00:19]} 6. Bf4 {[%emt 0:00:10]} Bg4 {[%emt 0:00:27]} 7. Qb3 {[%emt 0:00:08]} Qd7 {[%emt 0:00:30]} 8. Nd2 {[%emt 0:00:24]} e6 {[%emt 0:00:27]} 9. Ngf3 {[%emt 0:00:48]} Bd6 {[%emt 0:00:12]} 10. Bxd6 {[%emt 0:02:21]} Qxd6 {[%emt 0:00:09]} 11. O-O {[%emt 0:00:37]} O-O {[%emt 0:01:04]} 12. Rfe1 {[%emt 0:01:13]} Bxf3 {[%emt 0:16:56]} 13. Nxf3 {[%emt 0:00:10]} Rab8 {[%emt 0:00:17]} 14. Rad1 {[%emt 0:05:02]} b5 {[%emt 0:01:05]} 15. Ne5 {[%emt 0:07:09]} Na5 {[%emt 0:05:07]} 16. Qc2 {[%emt 0:00:41]} Rfc8 {[%emt 0:06:09]} 17. g4 {[%emt 0:26:20]} g6 {[%emt 0:21:15]} 18. f4 {[%emt 0:07:32]} Nc6 {[%emt 0:06:22]} 19. Qg2 {[%emt 0:01:36]} Kg7 {[%emt 0:01:50]} 20. Re3 {[%emt 0:03:46]} b4 {[%emt 0:03:25]} 21. Rf1 {[%emt 0:00:24]} bxc3 {[%emt 0:01:36]} 22. bxc3 {[%emt 0:00:06]} Ne7 {[%emt 0:01:17]} 23. f5 {[%emt 0:00:39]} exf5 {[%emt 0:00:49]} 24. gxf5 {[%emt 0:00:27]} Rxc3 {[%emt 0:01:12]} 25. fxg6 {[%emt 0:00:07]} hxg6 {[%emt 0:00:44]} 26. Qg5 {[%emt 0:00:11]} Rb2 {[%emt 0:00:55]} 27. Ref3 {[%emt 0:01:02]} Rc6 {[%emt 0:00:24]} 28. Rh3 {[%emt 0:00:48]} Neg8 {[%emt 0:00:41]} 29. Bxg6 {[%emt 0:01:18]} Rcc2 {[%emt 0:00:35]} 30. Bxc2+ {[%emt 0:00:11]} Kf8 {[%emt 0:00:03]} 31. Rh8 {[%emt 0:00:24]} Rxc2 {[%emt 0:00:57]} 32. Qxg8+ {[%emt 0:00:29]} Nxg8 {[%emt 0:00:26]} 33. Rxf7+ {[%emt 0:01:49]} 1-0

[Event "Argentine Youth-Junior-ch 2025"]
[Site "Mar del Plata"]
[Date "2025.04.16"]
[Round "2.8"]
[White "Figueroa, Layla Iazmin"]
[Black "Donda, Jazmin"]
[Result "0-1"]
[Annotator "RC"]
[ECO "C01"]
[WhiteElo "1553"]
[BlackElo "1919"]
[PlyCount "68"]
[EventDate "2025.04.14"]
[EventType "swiss"]
[EventCountry "ARG"]
[SourceTitle "playchess.com"]
[Source "ChessBase"]
[SourceQuality "1"]
[TimeControl "3600+30"]

1. e4 {[%emt 0:00:11]} e6 {[%emt 0:00:08]} 2. Nf3 {[%emt 0:00:30]} d5 {[%emt 0:00:30]} 3. exd5 {[%emt 0:00:30]} exd5 {[%emt 0:00:30]} 4. d4 {[%emt 0:00:30]} Nc6 {[%emt 0:00:30]} 5. Be2 {[%emt 0:00:30]} Bd6 {[%emt 0:00:30]} 6. O-O {[%emt 0:00:30]} Nge7 {[%emt 0:00:30]} 7. h3 {[%emt 0:00:30]} Bf5 {[%emt 0:00:30]} 8. Nbd2 {[%emt 0:00:30]} O-O {[%emt 0:00:30]} 9. c4 {[%emt 0:00:30]} Nb4 {[%emt 0:00:30]} 10. Nh4 {[%emt 0:08:34]} Bc2 {[%emt 0:15:47]} 11. Qe1 {[%emt 0:01:17]} Nd3 {[%emt 0:00:02]} 12. Bxd3 {[%emt 0:00:30]} Bxd3 {[%emt 0:00:30]} 13. a3 {[%emt 0:00:30]} Bxf1 {[%emt 0:00:30]} 14. Nxf1 {[%emt 0:00:30]} dxc4 {[%emt 0:00:30]} 15. Qe3 {[%emt 0:00:30]} b5 {[%emt 0:00:30]} 16. Nd2 {[%emt 0:00:30]} Nd5 {[%emt 0:00:30]} 17. Qf3 {[%emt 0:00:30]} Re8 {[%emt 0:00:30]} 18. Qxd5 {[%emt 0:00:30]} Bh2+ {[%emt 0:00:30]} 19. Kxh2 {[%emt 0:00:30]} Qxd5 {[%emt 0:00:30]} 20. Ndf3 {[%emt 0:00:30]} h6 {[%emt 0:00:30]} 21. Ng1 {[%emt 0:09:12]} Qxd4 {[%emt 0:19:48]} 22. Nhf3 {[%emt 0:02:47]} Qxf2 {[%emt 0:00:11]} 23. Bf4 {[%emt 0:00:30]} Qxb2 {[%emt 0:00:30]} 24. Rf1 {[%emt 0:00:30]} Qxa3 {[%emt 0:00:30]} 25. Nd4 {[%emt 0:00:30]} Qd3 {[%emt 0:00:30]} 26. Rf3 {[%emt 0:00:30]} Qxd4 {[%emt 0:00:30]} 27. Bxh6 {[%emt 0:00:30]} gxh6 {[%emt 0:00:30]} 28. Rg3+ {[%emt 0:00:30]} Kh8 {[%emt 0:00:30]} 29. h4 {[%emt 0:00:30]} Qd6 {[%emt 0:00:30]} 30. h5 {[%emt 0:00:30]} Rg8 {[%emt 0:00:30]} 31. Ne2 {[%emt 0:00:30]} Rae8 {[%emt 0:00:30]} 32. Kh1 {[%emt 0:00:30]} Rxg3 {[%emt 0:00:30]} 33. Ng1 {[%emt 0:00:30]} Re1 {[%emt 0:00:30]} 34. Kh2 {[%emt 0:00:30]} Rg4+ {[%emt 0:00:30]} 0-1

[Event "Argentine Youth-Junior-ch 2025"]
[Site "Mar del Plata"]
[Date "2025.04.16"]
[Round "2.9"]
[White "Manero, Gabriel Ignacio"]
[Black "Rodriguez, Elian Francisco"]
[Result "*"]
[Annotator "NA RC"]
[ECO "D10"]
[WhiteElo "1557"]
[BlackElo "2043"]
[PlyCount "88"]
[EventDate "2025.04.14"]
[EventType "swiss"]
[EventCountry "ARG"]
[SourceTitle "playchess.com"]
[Source "ChessBase"]
[SourceQuality "1"]
[TimeControl "3600+30"]

1. c4 {[%emt 0:02:13]} c6 {[%emt 0:00:31]} 2. g3 {[%emt 0:00:26]} d5 {[%emt 0:00:20]} 3. cxd5 {[%emt 0:01:27]} cxd5 {[%emt 0:00:13]} 4. d4 {[%emt 0:01:55]} Nf6 {[%emt 0:01:17]} 5. Nc3 {[%emt 0:02:00]} Bf5 {[%emt 0:02:34]} 6. Bg2 {[%emt 0:02:33] D10: Slav Defence: 3 cxd5 (without early Nf3) and 3 Nc3.} e6 {[%emt 0:00:57]} 7. Nf3 {[%emt 0:04:43]} a6 {[%emt 0:02:26]} 8. O-O {[%emt 0:02:14]} Bd6 {[%emt 0:00:46]} 9. Bg5 {[%emt 0:01:00]} Nbd7 {[%emt 0:03:30]} 10. Nd2 {[%emt 0:03:18]} Be7 {[%emt 0:04:55]} 11. e4 {[%emt 0:01:27]} dxe4 {[%emt 0:00:25]} 12. Ndxe4 {[%emt 0:01:10]} O-O {[%emt 0:01:28]} 13. Nxf6+ {[%emt 0:02:24]} Nxf6 {[%emt 0:00:33]} 14. d5 {[%emt 0:04:09]} exd5 {[%emt 0:07:17]} 15. Bxf6 {[%emt 0:02:13]} Bxf6 {[%emt 0:00:10]} 16. Qxd5 {[%emt 0:01:08]} Qc8 {[%emt 0:41:08]} 17. Qb3 {[%emt 0:04:22]} Rb8 {[%emt 0:02:18]} 18. Ne4 {[%emt 0:02:00]} Be7 {[%emt 0:01:04]} 19. Rac1 {[%emt 0:00:25]} Qe8 {[%emt 0:02:47]} 20. Rfe1 {[%emt 0:02:20]} Be6 {[%emt 0:00:24]} 21. Qf3 {[%emt 0:02:52]} Qb5 {[%emt 0:03:03]} 22. Qe2 {[%emt 0:02:54]} Qa5 {[%emt 0:02:05]} 23. a3 {[%emt 0:00:36]} b5 {[%emt 0:00:41]} 24. Red1 {[%emt 0:01:11]} Qb6 {[%emt 0:01:14]} 25. Nc3 {[%emt 0:02:34]} Rfe8 {[%emt 0:01:49]} 26. Re1 {[%emt 0:01:33]} g6 {[%emt 0:03:54]} 27. Nd5 {[%emt 0:02:02]} Bxd5 {[%emt 0:03:36]} 28. Bxd5 {[%emt 0:00:22]} Bc5 {[%emt 0:16:37]} 29. Qf3 {[%emt 0:17:29]} Rf8 {[%emt 0:02:11]} 30. b4 {[%emt 0:01:08]} Bd4 {[%emt 0:00:53]} 31. Rcd1 {[%emt 0:01:29]} Rbd8 {[%emt 0:01:36]} 32. Kg2 {[%emt 0:01:44]} Kg7 {[%emt 0:01:12]} 33. Ba2 {[%emt 0:01:06]} Bf6 {[%emt 0:00:37]} 34. Rxd8 {[%emt 0:00:58]} Rxd8 {[%emt 0:00:04]} 35. Qb3 {[%emt 0:00:50]} Qb7+ {[%emt 0:01:11]} 36. Kg1 {[%emt 0:00:58]} Qa7 {[%emt 0:01:48]} 37. Qe3 {[%emt 0:02:16]} Bd4 {[%emt 0:00:55]} 38. Qf3 {[%emt 0:00:32]} Bb6 {[%emt 0:01:07]} 39. Kg2 {[%emt 0:02:14]} Rd2 {[%emt 0:01:28]} 40. Re2 {[%emt 0:08:43]} Rd6 {[%emt 0:05:56]} 41. Qe4 {[%emt 0:02:27]} Rf6 {[%emt 0:00:53]} 42. Qc2 {[%emt 0:00:40]} Qb7+ {[%emt 0:00:48]} 43. Kg1 {[%emt 0:00:11]} h5 {[%emt 0:00:28]} 44. h4 {[%emt 0:00:16]} Qf3 $19 {[%emt 0:00:27]} *